bitfinex-derivatives/quotes_BTCF0:USTF0_20241117
["timestamp","ask_amount","ask_price","bid_price","bid_amount"]
[1731832492521,0.0654903,90644.0,90643.0,0.14967369]
[1731832492724,0.0001366,90646.0,90645.0,0.055162]
[1731832493019,0.05380255,90646.0,90645.0,0.05935112]
[1731832493415,0.0001366,90646.0,90645.0,0.05935112]
[1731832494321,0.0001366,90646.0,90645.0,0.055162]
[1731832494520,0.0001366,90646.0,90645.0,0.05934101]
[1731832495513,0.0001366,90646.0,90645.0,0.055162]
[1731832495823,0.0001366,90646.0,90645.0,0.05933876]
[1731832496622,0.0001366,90646.0,90645.0,0.05934856]
[1731832496823,0.0001366,90646.0,90645.0,0.07023519]
[1731832497009,0.0001366,90646.0,90645.0,0.0769351]
[1731832497214,0.0001366,90646.0,90645.0,0.07274854]
[1731832499133,0.05380186,90646.0,90645.0,0.43354854]
[1731832499315,0.0001366,90646.0,90645.0,0.43354854]
[1731832499515,0.09977792,90646.0,90645.0,0.43354854]
[1731832499722,0.15344318,90646.0,90645.0,0.43354854]
[1731832500516,0.15344318,90646.0,90645.0,0.42684863]
[1731832501125,0.15344318,90646.0,90645.0,0.42266018]
[1731832501321,0.15344318,90646.0,90645.0,0.4201473]
[1731832501518,0.15344318,90646.0,90645.0,0.42686336]
[1731832502514,0.15344318,90646.0,90645.0,0.0593473]
[1731832502714,0.15344318,90646.0,90645.0,0.4201473]
[1731832502715,0.26891561,90646.0,90645.0,0.4201473]
[1731832503523,0.26891561,90646.0,90645.0,0.42682602]
[1731832503826,0.26933825,90646.0,90645.0,0.42682602]
[1731832504224,0.26933825,90646.0,90645.0,0.42264074]
[1731832504424,0.26933825,90646.0,90645.0,0.42681389]
[1731832504619,0.26933825,90646.0,90645.0,0.415962]
[1731832504829,0.26933825,90646.0,90645.0,0.37162479]
[1731832505029,0.43563909,90646.0,90645.0,0.00416273]
[1731832505227,0.4564244,90646.0,90643.0,5.7e-07]
[1731832505429,0.40211636,90645.0,90643.0,5.7e-07]
[1731832505630,0.26920165,90644.0,90643.0,5.7e-07]
[1731832505824,0.5039772,90646.0,90643.0,5.7e-07]
[1731832506130,0.40211504,90645.0,90643.0,5.7e-07]
[1731832506335,0.05366525,90644.0,90643.0,5.7e-07]
[1731832506519,0.19841969,90644.0,90643.0,5.7e-07]
[1731832507328,0.05366525,90644.0,90643.0,5.7e-07]
[1731832508642,0.1984221,90644.0,90643.0,0.05516457]
[1731832508844,0.0001366,90646.0,90643.0,0.00403561]
[1731832509138,0.0001366,90646.0,90645.0,0.415962]
[1731832509543,0.0001366,90646.0,90645.0,0.45059704]
[1731832510536,0.0001366,90646.0,90645.0,0.446562]
[1731832513835,0.13148963,90647.0,90645.0,0.446562]
[1731832514022,0.0051,90656.0,90655.0,0.055156]
[1731832514219,0.26455958,90663.0,90655.0,0.0902]
[1731832514427,0.26455958,90665.0,90664.0,0.055151]
[1731832514633,0.10971375,90665.0,90663.0,0.055152]
[1731832514942,0.1098513,90664.0,90663.0,0.055152]
[1731832515524,0.00013755,90664.0,90663.0,0.055152]
[1731832520844,0.11332151,90664.0,90663.0,0.055152]
[1731832521424,0.11332151,90664.0,90657.0,0.3972]
[1731832521425,0.00013755,90664.0,90657.0,0.3972]
[1731832521631,0.055154,90659.0,90657.0,0.3972]
[1731832521828,0.0641,90658.0,90657.0,0.3972]
[1731832523049,0.0641,90658.0,90651.0,0.055158]
[1731832523250,0.19816428,90653.0,90651.0,0.055158]
[1731832523831,0.19816428,90652.0,90651.0,0.055158]
[1731832524031,0.19816428,90653.0,90651.0,0.055158]
[1731832524527,0.19816428,90654.0,90651.0,0.055158]
[1731832525131,0.19816428,90654.0,90652.0,0.055158]
[1731832525333,0.19816428,90655.0,90645.0,0.38287668]
[1731832525633,0.19816428,90656.0,90654.0,0.055157]
[1731832525936,0.19816428,90656.0,90645.0,0.38287668]
[1731832525937,0.19816428,90657.0,90655.0,0.055156]
[1731832526330,0.19816428,90658.0,90645.0,0.38287668]
[1731832526553,0.19816428,90659.0,90657.0,0.055155]
[1731832528045,0.00013755,90664.0,90657.0,0.055155]
[1731832528046,0.19816428,90658.0,90657.0,0.055155]
[1731832528340,0.11379214,90658.0,90652.0,0.0902]
[1731832528646,0.11379214,90658.0,90656.0,0.055156]
[1731832528647,0.21180036,90657.0,90656.0,0.055156]
[1731832529151,0.15167178,90657.0,90656.0,0.055156]
[1731832529333,0.2654697,90657.0,90656.0,0.055156]
[1731832529637,0.15167178,90657.0,90656.0,0.055156]
[1731832531640,0.15047911,90657.0,90656.0,0.055156]
[1731832532354,0.15047911,90657.0,90656.0,0.145356]
[1731832532535,0.055159,90651.0,90649.0,0.05516]
[1731832532736,0.055159,90651.0,90650.0,0.0902]
[1731832533035,0.055159,90651.0,90638.0,0.055166]
[1731832533036,0.055163,90644.0,90638.0,0.055166]
[1731832533236,0.10882759,90644.0,90638.0,0.055166]
[1731832533436,0.31896528,90644.0,90638.0,0.055166]
[1731832533644,0.18480184,90644.0,90638.0,0.055166]
[1731832533840,0.7738788,90644.0,90639.0,0.055166]
[1731832534142,0.7738788,90644.0,90640.0,0.055165]
[1731832534451,0.72018139,90644.0,90631.0,0.3608]
[1731832534742,0.72018139,90644.0,90642.0,0.055164]
[1731832534945,0.72018139,90644.0,90643.0,0.10915383]
[1731832534946,0.15090343,90644.0,90643.0,0.10915383]
[1731832535242,0.15090343,90644.0,90643.0,0.00424645]
[1731832535450,0.15090343,90644.0,90643.0,0.00424673]
[1731832535635,0.15090343,90644.0,90643.0,0.36504673]
[1731832535833,0.14794649,90644.0,90643.0,0.42021073]
[1731832536045,0.05366318,90644.0,90643.0,0.48621073]
[1731832536549,0.13716373,90657.0,90656.0,0.055156]
[1731832536746,0.24585587,90658.0,90656.0,0.42020216]
[1731832536932,0.24585587,90658.0,90657.0,0.00424616]
[1731832537133,0.24587637,90658.0,90657.0,0.00424616]
[1731832537444,0.11379214,90658.0,90657.0,0.00424616]
[1731832538149,0.16521721,90664.0,90657.0,0.00424616]
[1731832538443,0.16521721,90664.0,90658.0,0.00424616]
[1731832538645,0.16521721,90664.0,90658.0,0.01591576]
[1731832538953,0.16521721,90664.0,90658.0,0.07106976]
[1731832539136,0.16521721,90664.0,90658.0,0.0668236]
[1731832539532,0.16507966,90663.0,90659.0,0.055153]
[1731832539836,0.16507966,90663.0,90660.0,0.00448761]
[1731832540341,0.16507966,90663.0,90660.0,0.0116696]
[1731832541745,0.16507966,90663.0,90661.0,0.055153]
[1731832541932,0.00013755,90664.0,90663.0,0.055151]
[1731832542244,0.00013755,90664.0,90663.0,0.06237874]
[1731832543336,0.00013755,90664.0,90663.0,0.07141525]
[1731832543535,0.00013755,90664.0,90663.0,0.07593144]
[1731832543742,0.13224861,90664.0,90663.0,0.10713144]
[1731832543944,0.20484466,90675.0,90663.0,0.10713144]
[1731832543945,0.13211106,90672.0,90663.0,0.10713144]
[1731832544245,0.13211106,90673.0,90671.0,0.415947]
[1731832544448,0.13211106,90674.0,90673.0,0.055145]
[1731832544748,0.13211106,90674.0,90673.0,0.06688893]
[1731832545136,0.13211106,90674.0,90673.0,0.07592544]
[1731832545443,0.13388113,90675.0,90673.0,0.06867574]
[1731832546039,0.13388113,90675.0,90673.0,0.06416702]
[1731832546439,0.00177007,90675.0,90673.0,0.07138281]
[1731832546644,0.00177007,90675.0,90674.0,0.02074266]
[1731832548939,0.00177007,90675.0,90673.0,0.055145]
[1731832549261,0.00011523,90675.0,90673.0,0.055145]
[1731832551357,0.1050236,90675.0,90669.0,0.00108]
[1731832551540,0.055147,90671.0,90668.0,0.055148]
[1731832551747,0.21147675,90670.0,90668.0,0.055148]
[1731832551947,0.14587675,90669.0,90668.0,0.055148]
[1731832552154,0.0536482,90669.0,90668.0,0.055148]
[1731832552343,0.14587675,90669.0,90668.0,0.055148]
[1731832552549,0.37691918,90669.0,90668.0,0.055148]
[1731832553050,0.14587675,90669.0,90668.0,0.055148]
[1731832555153,0.29664243,90670.0,90665.0,0.758]
[1731832555360,0.25085924,90669.0,90665.0,0.758]
[1731832555659,0.25085924,90669.0,90665.0,0.3608]
[1731832555660,0.51490774,90669.0,90665.0,0.3608]
[1731832555845,0.25085924,90668.0,90666.0,0.02133578]
[1731832556151,0.51490774,90668.0,90667.0,0.00463678]
[1731832556452,0.51490774,90668.0,90651.0,0.055159]
[1731832556453,0.055155,90658.0,90651.0,0.055159]
[1731832556647,0.10490837,90657.0,90653.0,0.00393149]
[1731832556855,0.10490837,90657.0,90647.0,0.055161]
[1731832556856,0.31894979,90654.0,90647.0,0.055161]
[1731832557049,0.23081869,90648.0,90647.0,0.055161]
[1731832557243,0.23081869,90648.0,90647.0,0.06444475]
[1731832557244,0.32304691,90648.0,90647.0,0.06444475]
[1731832557647,0.23081836,90648.0,90647.0,0.06444475]
[1731832557855,0.14587675,90648.0,90647.0,0.06444475]
[1731832558449,0.0304,90652.0,90647.0,0.055161]
[1731832558650,0.0304,90652.0,90647.0,0.06444027]
[1731832558959,0.0304,90652.0,90648.0,0.00927927]
[1731832559149,0.0304,90652.0,90649.0,0.00927927]
[1731832559353,0.0304,90652.0,90647.0,0.055161]
[1731832559754,0.0302,90651.0,90647.0,0.055161]
[1731832560160,0.05516,90649.0,90642.0,0.055164]
[1731832560353,0.10490837,90646.0,90642.0,0.055164]
[1731832560770,0.055163,90644.0,90637.0,0.00393189]
[1731832560963,0.055163,90644.0,90639.0,0.00393189]
[1731832561259,0.055163,90644.0,90636.0,0.3608]
[1731832561260,0.085359,90651.0,90641.0,0.055165]
[1731832561557,0.085359,90651.0,90636.0,0.3608]
[1731832561558,0.055161,90647.0,90642.0,0.055164]
[1731832561748,0.0302,90651.0,90644.0,0.055163]
[1731832561955,0.0302,90651.0,90636.0,0.3608]
[1731832562454,0.0302,90651.0,90647.0,0.055161]
[1731832562958,0.0302,90651.0,90636.0,0.3608]
[1731832562959,0.055161,90647.0,90639.0,0.055166]
[1731832563467,0.055161,90647.0,90641.0,0.055165]
[1731832564362,0.055161,90647.0,90643.0,0.05516357]
[1731832565958,0.0302,90651.0,90645.0,0.055162]
[1731832566265,0.0302,90651.0,90647.0,0.055161]
[1731832566465,0.0302,90651.0,90649.0,0.05516]
[1731832566763,0.0304,90652.0,90650.0,0.055159]
[1731832571264,0.0304,90652.0,90651.0,0.00455711]
[1731832573074,0.3608,90658.0,90657.0,0.055155]
[1731832573272,0.10490837,90672.0,90657.0,0.055155]
[1731832573273,0.0326,90666.0,90657.0,0.01188213]
[1731832573565,0.0326,90666.0,90665.0,0.05515]
[1731832573760,0.08626141,90666.0,90665.0,0.05970711]
[1731832573972,0.05366141,90666.0,90665.0,0.05970711]
[1731832574161,0.05366141,90666.0,90665.0,0.05515]
[1731832574358,0.05366141,90666.0,90665.0,0.05974067]
[1731832574963,0.05366141,90667.0,90665.0,0.05974067]
[1731832575166,0.05366141,90666.0,90665.0,0.05515]
[1731832575477,0.05366141,90666.0,90665.0,0.05972429]
[1731832575672,0.05366141,90667.0,90665.0,0.05972429]
[1731832575977,0.05366141,90667.0,90666.0,0.00457429]
[1731832575978,0.05515,90667.0,90666.0,0.00457429]
[1731832576274,0.10880934,90667.0,90666.0,0.00457429]
[1731832576474,0.10880872,90667.0,90666.0,0.00457429]
[1731832576665,0.30662494,90667.0,90666.0,0.00457429]
[1731832577171,0.10880872,90667.0,90659.0,0.055154]
[1731832577368,0.16005837,90665.0,90660.0,0.0071881]
[1731832577567,0.55853746,90661.0,90660.0,0.0071881]
[1731832577767,0.50788654,90661.0,90660.0,0.0116801]
[1731832577967,0.50788654,90661.0,90660.0,0.0071881]
[1731832577968,0.53818654,90661.0,90660.0,0.0071881]
[1731832578169,0.055154,90660.0,90647.0,0.055161]
[1731832578373,0.19776562,90649.0,90647.0,0.055161]
[1731832578677,0.05365872,90648.0,90644.0,0.3608]
[1731832578864,0.19780934,90646.0,90644.0,0.415963]
[1731832579559,0.25146806,90647.0,90644.0,0.415963]
[1731832579770,0.25146806,90646.0,90644.0,0.415963]
[1731832579971,0.05365872,90645.0,90644.0,0.415963]
[1731832580173,0.19780934,90646.0,90644.0,0.415963]
[1731832580579,0.13198343,90648.0,90644.0,0.3608]
[1731832580880,0.13198343,90647.0,90644.0,0.3608]
[1731832581173,0.13198343,90648.0,90646.0,0.055161]
[1731832581383,0.13198343,90647.0,90646.0,0.055161]
[1731832581565,0.22667929,90652.0,90650.0,0.055159]
[1731832581767,0.0617,90652.0,90650.0,0.055159]
[1731832581963,0.16497929,90653.0,90651.0,0.055158]
[1731832582168,0.16497929,90654.0,90653.0,0.055158]
[1731832582368,0.055157,90654.0,90653.0,0.00451869]
[1731832582572,0.055157,90654.0,90645.0,0.09016]
[1731832582777,0.13206383,90650.0,90648.0,0.05516]
[1731832582972,0.13206383,90650.0,90649.0,0.00451829]
[1731832583479,0.16497929,90655.0,90649.0,0.00450994]
[1731832583480,0.055159,90651.0,90649.0,0.00450994]
[1731832583678,0.055159,90651.0,90650.0,0.00450994]
[1731832584075,0.055159,90651.0,90645.0,0.145322]
[1731832584383,0.13209693,90647.0,90646.0,0.00451549]
[1731832584582,0.055159,90651.0,90646.0,0.00451549]
[1731832584877,0.055161,90649.0,90647.0,0.00451549]
[1731832585078,0.415961,90649.0,90648.0,0.00451549]
[1731832585286,0.415961,90649.0,90636.0,0.19812506]
[1731832585287,0.055163,90645.0,90636.0,0.19812506]
[1731832585478,0.16514845,90644.0,90635.0,0.453488]
[1731832585785,0.05367262,90644.0,90635.0,0.452368]
[1731832586269,0.055163,90645.0,90643.0,0.01173157]
[1731832586474,0.055163,90645.0,90644.0,0.011731]
[1731832586678,0.21374416,90645.0,90644.0,0.011731]
[1731832587275,0.21374416,90645.0,90644.0,0.01166514]
[1731832587276,0.41171931,90645.0,90644.0,0.01166514]
[1731832587687,0.21374416,90645.0,90644.0,0.00448589]
[1731832588179,0.35826465,90645.0,90644.0,0.00448589]
[1731832588483,0.41193744,90645.0,90644.0,0.00448589]
[1731832588676,0.41692123,90645.0,90644.0,0.00448589]
[1731832588983,0.46513759,90645.0,90644.0,0.00448589]
[1731832589184,0.58719786,90645.0,90644.0,0.00448589]
[1731832589376,0.35597841,90645.0,90644.0,0.00448589]
[1731832592884,0.35597841,90645.0,90644.0,0.01165445]
[1731832593290,0.35597841,90645.0,90644.0,0.00448589]
[1731832593888,0.35597841,90645.0,90644.0,0.00447761]
[1731832594391,0.35597841,90645.0,90644.0,0.01167095]
[1731832594693,0.35597841,90645.0,90644.0,0.01167078]
[1731832595587,0.26196052,90645.0,90644.0,0.01167078]
[1731832595977,0.26196158,90645.0,90644.0,0.01167078]
[1731832598389,0.26196158,90645.0,90644.0,0.00447761]
[1731832598589,0.26196158,90645.0,90644.0,0.01172623]
[1731832598796,0.46014205,90645.0,90644.0,0.00447761]
[1731832598992,0.26196158,90645.0,90644.0,0.00447761]
[1731832599197,0.46014205,90645.0,90644.0,0.00447761]
[1731832599383,0.26196158,90645.0,90644.0,0.00447761]
[1731832599988,0.62276158,90645.0,90644.0,0.00447761]
[1731832601293,0.62276158,90645.0,90643.0,5.7e-07]
[1731832601499,0.05367385,90644.0,90643.0,5.7e-07]
[1731832603002,0.25182471,90644.0,90643.0,5.7e-07]
[1731832603500,0.05367385,90644.0,90643.0,5.7e-07]
[1731832603798,0.05517,90633.0,90624.0,0.086075]
[1731832604015,0.28634254,90633.0,90625.0,0.00441332]
[1731832604300,0.15183113,90632.0,90627.0,0.055173]
[1731832604487,0.28634254,90633.0,90627.0,0.055173]
[1731832604488,0.23117254,90629.0,90627.0,0.055173]
[1731832604890,0.15185159,90628.0,90627.0,0.055173]
[1731832605192,0.09817222,90628.0,90627.0,0.055173]
[1731832605605,0.09817222,90629.0,90627.0,0.055173]
[1731832605819,0.05517,90633.0,90627.0,0.055173]
[1731832605820,0.15185159,90628.0,90627.0,0.055173]
[1731832605999,0.09817222,90628.0,90627.0,0.05960061]
[1731832606200,0.38302413,90632.0,90627.0,0.05960065]
[1731832606500,0.38302413,90631.0,90627.0,0.055173]
[1731832606698,0.38302413,90630.0,90627.0,0.055173]
[1731832606893,0.38302413,90629.0,90627.0,0.055173]
[1731832607096,0.15185159,90628.0,90627.0,0.055173]
[1731832607296,0.23117254,90628.0,90627.0,0.055173]
[1731832607593,0.15185159,90628.0,90627.0,0.055173]
[1731832608102,0.15185159,90628.0,90627.0,0.05958641]
[1731832608300,0.23117254,90630.0,90627.0,0.05958641]
[1731832608301,0.23117254,90630.0,90627.0,0.06663882]
[1731832608493,0.23117254,90630.0,90628.0,0.01146582]
[1731832608694,0.15185159,90632.0,90629.0,0.01146582]
[1731832608991,0.26701544,90631.0,90630.0,0.01146582]
[1731832609192,0.15239822,90631.0,90630.0,0.01146582]
[1731832609394,0.26701338,90631.0,90630.0,0.01146582]
[1731832609801,0.23138317,90631.0,90630.0,0.01146582]
[1731832609988,0.38378139,90632.0,90630.0,0.01146582]
[1731832610189,0.38378139,90631.0,90627.0,0.055173]
[1731832610389,0.15239822,90630.0,90628.0,0.01148909]
[1731832610598,0.15239822,90629.0,90627.0,0.055173]
[1731832610894,0.26900854,90633.0,90628.0,0.00442053]
[1731832611192,0.26900854,90633.0,90629.0,0.01149518]
[1731832611398,0.26900854,90633.0,90630.0,0.01149518]
[1731832611597,0.26900854,90633.0,90631.0,0.01149518]
[1731832611808,0.26900854,90633.0,90632.0,0.01149518]
[1731832612503,0.26902968,90633.0,90632.0,0.01149518]
[1731832613212,0.1037405,90633.0,90632.0,0.01149518]
[1731832613392,0.15741934,90633.0,90632.0,0.01149518]
[1731832613703,0.1037405,90633.0,90632.0,0.01149518]
[1731832614211,0.15741936,90633.0,90632.0,0.01149518]
[1731832614400,0.15741936,90633.0,90632.0,0.00885206]
[1731832614596,0.15741936,90633.0,90632.0,0.01594431]
[1731832614806,0.22751773,90633.0,90632.0,0.01594431]
[1731832614996,0.22751773,90633.0,90632.0,0.01152378]
[1731832616510,0.22751773,90633.0,90628.0,0.055173]
[1731832616705,0.07009837,90629.0,90628.0,0.055173]
[1731832617211,0.07009837,90629.0,90628.0,0.05959601]
[1731832618106,0.23551186,90629.0,90628.0,0.05959601]
[1731832618300,0.07009837,90629.0,90628.0,0.05959601]
[1731832618609,0.07009837,90629.0,90628.0,0.055173]
[1731832618808,0.12377779,90629.0,90628.0,0.055173]
[1731832620018,0.12377779,90629.0,90628.0,0.05958117]
[1731832620310,0.12377779,90629.0,90628.0,0.00440817]
[1731832620514,0.12377779,90629.0,90624.0,0.0309]
[1731832620515,0.37727144,90629.0,90624.0,0.0309]
[1731832620707,0.05367942,90628.0,90625.0,0.00441182]
[1731832620907,0.25200107,90628.0,90624.0,0.0309]
[1731832621103,0.05367942,90627.0,90626.0,0.055174]
[1731832621297,0.05367942,90628.0,90626.0,0.055174]
[1731832621500,0.05367942,90627.0,90626.0,0.055174]
[1731832621820,0.19832165,90627.0,90626.0,0.055174]
[1731832622899,0.05367942,90627.0,90626.0,0.055174]
[1731832623105,0.19832165,90627.0,90626.0,0.055174]
[1731832623805,0.05367942,90627.0,90626.0,0.06650093]
[1731832624009,0.25200107,90628.0,90626.0,0.06650093]
[1731832624208,0.25200107,90627.0,90626.0,0.055174]
[1731832624404,0.19832165,90627.0,90626.0,0.06650131]
[1731832625808,0.26813082,90628.0,90626.0,0.06650131]
[1731832626012,0.26813082,90627.0,90626.0,0.055174]
[1731832626207,0.26813082,90628.0,90626.0,0.06656055]
[1731832626512,0.26813082,90627.0,90626.0,0.055174]
[1731832626704,0.26813082,90627.0,90626.0,0.011387]
[1731832628116,0.26813082,90627.0,90625.0,0.055175]
[1731832628416,0.26813082,90627.0,90626.0,0.01137618]
[1731832629305,0.16889586,90627.0,90626.0,0.06655018]
[1731832629611,0.26813082,90628.0,90626.0,0.06655018]
[1731832629926,0.26813082,90627.0,90626.0,0.055174]
[1731832630116,0.26813082,90627.0,90626.0,0.06665166]
[1731832630819,0.26813082,90627.0,90626.0,0.07548266]
[1731832631414,0.26813082,90627.0,90626.0,0.055174]
[1731832631727,0.26724439,90627.0,90626.0,0.07548331]
[1731832632919,0.26724439,90627.0,90626.0,0.06665143]
[1731832633823,0.05367974,90627.0,90626.0,0.06665143]
[1731832634821,0.07009837,90629.0,90626.0,0.06665143]
[1731832634822,0.05367974,90628.0,90626.0,0.25387424]
[1731832635033,0.05367974,90627.0,90626.0,0.19870024]
[1731832635213,0.05367974,90627.0,90626.0,0.00701108]
[1731832635412,0.05367974,90628.0,90626.0,0.2127228]
[1731832635711,0.12527037,90629.0,90626.0,0.2127228]
[1731832635712,0.05367974,90627.0,90626.0,0.01402204]
[1731832635912,0.05367974,90627.0,90626.0,0.21272298]
[1731832636116,0.05367974,90628.0,90626.0,0.01402204]
[1731832636322,0.12527037,90629.0,90627.0,0.20571457]
[1731832636618,0.12527037,90629.0,90628.0,0.01139185]
[1731832636820,0.17895097,90629.0,90628.0,0.00438077]
[1731832637120,0.17895097,90629.0,90628.0,0.01132358]
[1731832638418,0.17895097,90629.0,90628.0,0.01128873]
[1731832639016,0.17895097,90629.0,90628.0,0.00434114]
[1731832640615,0.24918376,90629.0,90626.0,0.00701096]
[1731832640828,0.24918376,90629.0,90626.0,0.00289581]
[1731832640829,0.055173,90627.0,90626.0,0.00289581]
[1731832641029,0.45611709,90627.0,90626.0,0.00289581]
[1731832641617,0.055179,90618.0,90611.0,0.09004]
[1731832641836,0.07009837,90616.0,90611.0,0.09004]
[1731832642027,0.33920293,90616.0,90611.0,0.09004]
[1731832642713,0.26910456,90616.0,90610.0,0.055184]
[1731832642918,0.26910456,90616.0,90615.0,0.05531347]
[1731832643131,0.0536806,90616.0,90615.0,0.05531347]
[1731832643320,0.16946049,90616.0,90615.0,0.05531347]
[1731832643624,0.15332467,90616.0,90615.0,0.05531347]
[1731832643826,0.15332467,90616.0,90615.0,0.45649184]
[1731832644033,0.10700565,90616.0,90615.0,0.39538492]
[1731832644336,0.00700565,90616.0,90615.0,0.39538492]
[1731832644628,0.23148447,90622.0,90620.0,0.055178]
[1731832644814,0.37351069,90632.0,90624.0,0.055175]
[1731832644815,0.23148447,90625.0,90624.0,0.055175]
[1731832645020,0.23148447,90625.0,90624.0,0.415975]
[1731832645216,0.108109,90625.0,90624.0,0.3608]
[1731832645416,0.26470821,90629.0,90627.0,0.055173]
[1731832645616,0.10811158,90628.0,90627.0,0.055173]
[1731832645814,0.10811158,90628.0,90627.0,0.12527137]
[1731832646030,0.10811158,90628.0,90627.0,0.13426395]
[1731832646225,0.10811158,90628.0,90627.0,0.12527137]
[1731832646611,0.23149392,90628.0,90627.0,0.12527137]
[1731832646817,0.00013442,90629.0,90627.0,0.12527137]
[1731832647012,0.00013442,90629.0,90628.0,0.40113837]
[1731832647224,0.23149392,90637.0,90628.0,0.33104]
[1731832647522,0.3608,90645.0,90643.0,0.055163]
[1731832647731,0.3608,90645.0,90644.0,0.07009837]
[1731832648127,0.36092724,90645.0,90644.0,0.07009837]
[1731832648715,0.36092724,90645.0,90643.0,0.055163]
[1731832648941,0.36092724,90645.0,90644.0,0.00899258]
[1731832649228,0.00012724,90645.0,90644.0,0.36979258]
[1731832649619,0.00012724,90645.0,90644.0,0.41854038]
[1731832649820,0.13728608,90660.0,90644.0,1.15702456]
[1731832650032,0.52607499,90667.0,90661.0,0.055153]
[1731832650033,0.13218608,90662.0,90661.0,0.055153]
[1731832650230,0.13218608,90667.0,90666.0,0.05515]
[1731832650433,0.0051,90680.0,90666.0,0.05515]
[1731832650434,0.0051,90680.0,90666.0,0.11406399]
[1731832650625,0.04764182,90680.0,90673.0,0.3608]
[1731832650842,0.00011482,90679.0,90674.0,0.01633524]
[1731832651034,0.00011482,90679.0,90678.0,0.16021341]
[1731832651947,0.00011482,90679.0,90678.0,0.055142]
[1731832655422,0.00011482,90679.0,90678.0,0.16029443]
[1731832655835,0.00011482,90679.0,90678.0,0.49113443]
[1731832656027,0.0051,90693.0,90692.0,0.055134]
[1731832656230,0.04951259,90699.0,90689.0,0.3608]
[1731832656430,0.0642,90703.0,90689.0,0.3608]
[1731832656739,0.0642,90703.0,90699.0,0.10507141]
[1731832656937,0.0642,90703.0,90699.0,0.16020041]
[1731832656938,9.233e-05,90702.0,90699.0,0.16020041]
[1731832658233,9.233e-05,90702.0,90699.0,0.10507141]
[1731832658428,9.233e-05,90702.0,90701.0,0.055128]
[1731832658631,9.233e-05,90702.0,90699.0,0.10507141]
[1731832661243,9.233e-05,90702.0,90699.0,0.16020041]
[1731832661447,9.233e-05,90702.0,90699.0,0.10507141]
[1731832661748,9.233e-05,90702.0,90700.0,0.055129]
[1731832667137,0.00165426,90712.0,90700.0,0.055129]
[1731832667138,0.00165426,90712.0,90701.0,0.46587141]
[1731832667332,0.00165426,90712.0,90711.0,0.52099341]
[1731832667637,0.00165426,90712.0,90711.0,0.61095341]
[1731832667832,0.00165426,90712.0,90711.0,0.94167341]
[1731832668040,0.00165426,90712.0,90711.0,0.94595656]
[1731832668243,0.00165426,90712.0,90711.0,0.94167341]
[1731832668554,0.00165426,90712.0,90711.0,0.94598648]
[1731832669052,0.0051,90728.0,90727.0,0.16018441]
[1731832669256,0.50064,90730.0,90729.0,0.055111]
[1731832669466,0.5,90730.0,90729.0,0.055111]
[1731832669839,0.055112,90728.0,90723.0,0.08992]
[1731832670135,0.055112,90728.0,90726.0,0.055113]
[1731832670748,0.50073723,90730.0,90722.0,0.10507141]
[1731832670749,0.50073723,90730.0,90723.0,0.08992]
[1731832671043,0.50009723,90730.0,90729.0,0.10507141]
[1731832671844,0.33462064,90730.0,90729.0,0.10507141]
[1731832672554,0.055111,90729.0,90723.0,0.055115]
[1731832673050,0.055111,90729.0,90725.0,0.055114]
[1731832673239,0.33462064,90730.0,90720.0,0.08992]
[1731832673440,0.055113,90727.0,90720.0,0.08992]
[1731832673742,0.055113,90727.0,90715.0,0.05512]
[1731832673743,0.415913,90727.0,90716.0,0.08992]
[1731832674657,0.3608,90727.0,90726.0,0.10507141]
[1731832674952,0.3608,90727.0,90725.0,0.055113]
[1731832676046,0.33462064,90730.0,90725.0,0.055113]
[1731832676354,0.33462064,90730.0,90726.0,0.00413443]
[1731832677051,0.33462064,90730.0,90725.0,0.055113]
[1731832677434,0.33462064,90730.0,90726.0,0.00415544]
[1731832677841,0.33462064,90730.0,90727.0,0.00415544]
[1731832678049,0.33462064,90730.0,90728.0,0.00415544]
[1731832678234,0.33462064,90730.0,90729.0,0.00415544]
[1731832678847,0.33462064,90730.0,90729.0,0.01084218]
[1731832679949,0.33462064,90730.0,90728.0,0.055112]
[1731832680253,0.33462064,90730.0,90729.0,0.01087077]
[1731832684547,0.055111,90729.0,90719.0,0.055117]
[1731832684857,0.3608,90729.0,90720.0,0.01090433]
[1731832685057,0.3608,90729.0,90714.0,0.39828]
[1731832685058,0.3608,90721.0,90714.0,0.39828]
[1731832685253,0.05512,90715.0,90714.0,0.3972]
[1731832685460,0.05512,90715.0,90714.0,0.40138917]
[1731832685759,0.055122,90712.0,90711.0,0.26353324]
[1731832685961,0.055122,90712.0,90711.0,0.00670864]
[1731832686352,0.055123,90710.0,90709.0,0.26353324]
[1731832686549,0.415923,90710.0,90709.0,0.26353324]
[1731832686752,0.85171441,90710.0,90709.0,0.09786423]
[1731832686947,0.385844,90709.0,90693.0,0.32941655]
[1731832687154,0.055133,90693.0,90692.0,0.00048]
[1731832693270,0.3608,90694.0,90692.0,0.00048]
[1731832693655,0.0051,90708.0,90700.0,0.055129]
[1731832693851,0.41652301,90710.0,90701.0,0.0621]
[1731832693852,0.055125,90707.0,90701.0,0.0621]
[1731832695351,0.3608,90710.0,90701.0,0.0621]
[1731832695752,0.3608,90710.0,90703.0,0.055127]
[1731832696058,0.3608,90710.0,90708.0,0.055124]
[1731832696566,0.3608,90710.0,90709.0,0.10507141]
[1731832697365,0.3104,90710.0,90709.0,0.10507141]
[1731832697857,0.3104,90710.0,90709.0,0.10924261]
[1731832698472,0.3104,90710.0,90709.0,0.11587864]
[1731832698959,0.3104,90710.0,90709.0,0.12666055]
[1731832699272,0.3104,90710.0,90709.0,0.11585332]
[1731832699655,0.00165413,90712.0,90710.0,0.055123]
[1731832699865,0.00165413,90712.0,90711.0,0.00663568]
[1731832700080,0.055122,90711.0,90709.0,0.00522623]
[1731832700371,0.055128,90702.0,90701.0,0.0303]
[1731832700672,0.415928,90702.0,90701.0,0.0344675]
[1731832700880,0.415928,90702.0,90701.0,0.0303]
[1731832701456,0.055133,90694.0,90693.0,0.033]
[1731832701772,0.055133,90694.0,90693.0,0.03712897]
[1731832702368,0.055133,90694.0,90693.0,0.033]
[1731832702764,0.055133,90694.0,90693.0,0.03713096]
[1731832703069,0.055133,90694.0,90693.0,0.033]
[1731832703873,0.3608,90696.0,90693.0,0.033]
[1731832704774,0.3608,90696.0,90694.0,0.055132]
[1731832704976,0.3608,90696.0,90694.0,0.05927984]
[1731832705164,0.055133,90694.0,90693.0,0.033]
[1731832705373,0.055133,90694.0,90693.0,0.03714845]
[1731832705561,0.055133,90694.0,90693.0,0.033]
[1731832706266,0.3608,90696.0,90693.0,0.033]
[1731832706472,0.055132,90695.0,90693.0,0.033]